bitfinex/quotes_SOLUSD_20250130
["timestamp","ask_amount","ask_price","bid_price","bid_amount"]
[1738214102788,0.37647,241.9,241.87,0.063]
[1738214103086,32.03391894,241.88,241.87,0.063]
[1738214103584,8.50181089,241.88,241.87,0.063]
[1738214104303,83.0,241.89,241.87,0.063]
[1738214104586,8.25703494,241.94,241.87,0.063]
[1738214104890,7.88056494,241.98,241.9,7.88056494]
[1738214105181,8.50181089,241.98,241.9,7.88056494]
[1738214105384,90.88056494,242.0,241.92,7.88056494]
[1738214105964,7.88056494,242.02,241.94,7.88056494]
[1738214106180,7.88056494,242.03,241.96,7.88056494]
[1738214106378,7.88056494,242.01,241.93,7.88056494]
[1738214106664,12.30500073,242.01,241.93,12.30500073]
[1738214107390,12.92624668,242.04,241.95,12.30500073]
[1738214108378,12.30500073,242.04,241.95,12.30500073]
[1738214108957,0.62124595,242.07,241.95,12.30500073]
[1738214109158,0.03,242.08,241.99,20.0]
[1738214109387,0.03,242.08,242.05,12.30500073]
[1738214109572,0.03,242.08,242.07,12.30500073]
[1738214110293,0.03,242.08,242.06,12.30500073]
[1738214110884,12.30500073,242.07,241.94,12.30500073]
[1738214111089,12.30500073,242.04,241.97,20.0]
[1738214111810,12.30500073,242.02,241.94,12.30500073]
[1738214111986,12.30500073,242.02,241.9,1.6129]
[1738214111987,12.30500073,241.96,241.9,1.6129]
[1738214112287,12.30500073,241.94,241.87,0.063]
[1738214112458,0.62124595,241.93,241.87,0.063]
[1738214112658,12.30500073,241.94,241.92,0.063]
[1738214113471,12.30500073,241.96,241.92,0.063]
[1738214114495,12.33500073,242.0,241.92,12.36800073]
[1738214114669,0.03,242.0,241.94,12.30500073]
[1738214114989,0.03,242.0,241.92,0.063]
[1738214114990,0.03,242.0,241.98,12.30500073]
[1738214115577,0.03,242.0,241.94,12.30500073]
[1738214116285,0.03,242.0,241.96,12.30500073]
[1738214118071,0.03,242.0,241.98,12.30500073]
[1738214119588,0.03,242.0,241.92,15.42800073]
[1738214119589,13.43049073,241.99,241.92,0.063]
[1738214119787,12.30500073,241.94,241.92,0.063]
[1738214119991,0.62124595,241.93,241.92,0.063]
[1738214120494,24.77459995,241.93,241.92,0.063]
[1738214120799,23.776884,241.92,241.86,19.43675849]
[1738214120984,0.62124595,241.91,241.86,19.43675849]
[1738214121186,0.62124595,241.91,241.82,19.76784009]
[1738214121385,20.32608604,241.91,241.82,19.76784009]
[1738214122699,19.70484009,241.87,241.82,0.063]
[1738214123190,19.70484009,241.87,241.82,20.063]
[1738214124902,19.70484009,241.89,241.82,0.063]
[1738214127487,0.62124595,241.88,241.83,27.28594009]
[1738214127688,0.03,242.0,241.83,27.28594009]
[1738214127689,0.03,242.0,241.91,20.0]
[1738214127891,0.03,242.0,241.97,19.70484009]
[1738214128492,0.03,242.0,241.86,1.12549]
[1738214128493,0.03,242.0,241.95,19.70484009]
[1738214129100,0.03,242.0,241.97,19.70484009]
[1738214130208,0.03,242.0,241.99,19.70484009]
[1738214130877,0.03,242.0,241.99,20.0]
[1738214132211,0.03,242.0,241.99,39.70484009]
[1738214132595,0.03,242.08,242.0,0.50196]
[1738214132795,0.03,242.08,242.07,19.70484009]
[1738214133110,0.03,242.08,242.05,19.70484009]
[1738214135003,0.03,242.08,242.07,19.70484009]
[1738214137196,0.03,242.08,242.07,19.83033009]
[1738214137388,0.03,242.08,242.07,19.70484009]
[1738214140416,0.03,242.08,242.07,19.83033009]
[1738214140600,0.03,242.08,242.07,21.40883009]
[1738214142318,0.03,242.08,242.07,21.28334009]
[1738214142616,0.03,242.08,242.07,19.70484009]
[1738214142928,0.03,242.08,242.05,19.70484009]
[1738214143108,0.03,242.08,242.03,19.70484009]
[1738214144909,0.03,242.08,242.05,19.70484009]
[1738214147523,0.03,242.08,242.03,19.70484009]
[1738214148727,0.03,242.08,242.07,24.278844]
[1738214148900,0.03,242.14,242.11,0.12549]
[1738214149222,0.03,242.14,242.13,19.70484009]
[1738214152616,0.03,242.14,242.13,20.0]
[1738214155123,0.03,242.14,242.11,19.70484009]
[1738214156327,19.70484009,242.13,242.08,20.0]
[1738214157728,0.65124595,242.14,242.08,20.0]
[1738214157918,0.03,242.14,242.1,20.0]
[1738214158310,0.03,242.14,242.12,20.0]
[1738214158506,0.03,242.14,242.13,39.70484009]
[1738214166322,0.03,242.14,242.11,19.70484009]
[1738214166536,0.03,242.14,242.09,19.70484009]
[1738214167438,0.03,242.14,242.12,20.0]
[1738214169238,0.03,242.14,242.11,19.70484009]
[1738214169623,0.03,242.14,242.13,19.70484009]
[1738214172146,0.03,242.14,242.11,19.70484009]
[1738214172640,0.03,242.14,242.11,12.28655825]
[1738214173522,0.03,242.14,242.13,12.28655825]
[1738214176729,0.03,242.14,242.11,12.28655825]
[1738214178135,0.03,242.14,242.12,20.0]
[1738214179274,23.806884,242.14,242.1,20.0]
[1738214179939,23.806884,242.14,242.12,20.0]
[1738214180663,30.426884,242.14,242.12,20.0]
[1738214181760,0.03,242.14,242.12,20.0]
[1738214182053,0.03,242.14,242.13,20.0]
[1738214183945,23.806884,242.14,242.12,20.0]
[1738214184526,23.806884,242.14,242.1,20.0]
[1738214187763,23.806884,242.14,242.12,20.0]
[1738214188065,0.25098,242.13,242.08,12.34955825]
[1738214188247,36.06344225,242.12,242.08,0.063]
[1738214188440,0.62124595,242.11,242.08,0.063]
[1738214189561,36.43991225,242.09,242.08,0.063]
[1738214189741,37.0611582,242.09,242.08,0.063]
[1738214191843,37.1866482,242.09,242.08,0.063]
[1738214192448,37.0611582,242.09,242.08,0.063]
[1738214192845,37.1866482,242.09,242.08,0.063]
[1738214198066,37.2166482,242.09,242.08,0.063]
[1738214201367,38.2166482,242.09,242.08,0.063]
[1738214201568,38.2166482,242.09,241.96,4.05208216]
[1738214201569,33.386154,242.0,241.85,12.28655825]
[1738214201755,46.2939582,242.0,241.86,12.28655825]
[1738214202157,46.2939582,242.0,241.87,12.28655825]
[1738214202559,46.2939582,242.0,241.88,12.28655825]
[1738214203154,45.2939582,242.0,241.87,12.28655825]
[1738214203483,45.2939582,242.0,241.83,0.063]
[1738214203484,1.0,241.84,241.83,0.063]
[1738214203660,12.28655825,241.86,241.83,0.063]
[1738214203859,0.62124595,241.85,241.83,0.063]
[1738214204055,0.62124595,241.87,241.83,0.063]
[1738214204571,23.902374,241.86,241.83,0.063]
[1738214204775,23.902374,241.84,241.83,0.063]
[1738214205575,0.62124595,241.85,241.83,0.063]
[1738214205967,0.62124595,241.87,241.83,0.063]
[1738214206476,36.18893225,241.86,241.83,0.063]
[1738214206775,0.62124595,241.85,241.83,0.063]
[1738214207573,23.902374,241.84,241.83,0.063]
[1738214210755,36.18893225,241.84,241.83,0.063]
[1738214214176,36.9356682,241.84,241.83,0.063]
[1738214214370,37.0611582,241.84,241.83,0.063]
[1738214215476,37.0611582,241.84,241.82,0.04660118]
[1738214215662,36.18893225,241.83,241.82,0.04660118]
[1738214216182,36.43991225,241.83,241.82,0.04660118]
[1738214217569,12.28655825,241.83,241.75,0.063]
[1738214217772,12.28655825,241.8,241.75,0.063]
[1738214217976,12.9078042,241.79,241.75,0.063]
[1738214218477,12.28655825,241.79,241.75,0.063]
[1738214218884,12.28655825,241.78,241.75,0.063]
[1738214219184,0.62124595,241.8,241.75,0.063]
[1738214219487,12.9078042,241.8,241.75,0.063]
[1738214220791,0.62124595,241.89,241.79,12.28655825]
[1738214220991,95.28655825,241.9,241.84,12.28655825]
[1738214220992,83.0,241.9,241.84,12.28655825]
[1738214221297,12.28655825,241.89,241.82,12.28655825]
[1738214221598,12.28655825,241.89,241.8,21.6403]
[1738214221599,0.62124595,241.88,241.81,12.28655825]
[1738214221759,12.9078042,241.88,241.81,12.28655825]
[1738214222388,12.9078042,241.88,241.8,21.6403]
[1738214222594,95.28655825,241.9,241.83,12.28655825]
[1738214222762,83.0,241.9,241.84,12.28655825]
[1738214222961,0.62124595,241.91,241.85,12.28655825]
[1738214223166,12.28655825,241.93,241.85,12.28655825]
[1738214223388,12.28655825,241.9,241.83,12.28655825]
[1738214223591,12.9078042,241.89,241.85,20.0]
[1738214223767,12.28655825,241.89,241.81,12.28655825]
[1738214224366,12.28655825,241.88,241.84,20.0]
[1738214224567,12.28655825,241.89,241.84,20.0]
[1738214224861,12.28655825,241.9,241.84,20.0]
[1738214225087,36.6846882,241.91,241.84,12.28655825]
[1738214225689,12.28655825,241.9,241.83,12.28655825]
[1738214225887,12.9078042,241.89,241.82,12.28655825]
[1738214226991,13.28655825,241.84,241.79,0.063]
[1738214227194,12.28655825,241.81,241.79,0.063]
[1738214227496,24.77459995,241.8,241.79,0.063]
[1738214227895,24.90008995,241.8,241.79,0.063]
[1738214229095,29.03568995,241.8,241.79,0.063]
[1738214229779,112.03568995,241.8,241.79,0.063]
[1738214230087,123.70100225,241.8,241.79,0.063]
[1738214230274,124.70100225,241.8,241.79,0.063]
[1738214230475,41.70100225,241.8,241.79,0.063]
[1738214230793,24.278844,241.77,241.75,0.063]
[1738214230991,36.8101782,241.76,241.75,0.063]
[1738214231291,41.3229482,241.76,241.75,0.063]
[1738214232071,42.3229482,241.76,241.75,0.063]
[1738214232267,108.153354,241.75,241.73,0.063]
[1738214232466,1.37647,241.72,241.62,0.063]
[1738214232682,0.37647,241.68,241.62,0.063]
[1738214232975,49.34771645,241.68,241.62,0.063]
[1738214233494,53.61090645,241.68,241.62,0.063]
[1738214234189,37.1866482,241.68,241.62,0.063]
[1738214238295,24.153354,241.65,241.55,12.28655825]
[1738214238496,12.28655825,241.62,241.55,12.28655825]
[1738214238696,0.62124595,241.62,241.56,32.28655825]
[1738214240176,0.62124595,241.62,241.56,20.0]
[1738214240887,12.9078042,241.62,241.57,20.0]
[1738214241089,0.62124595,241.62,241.57,20.0]
[1738214241889,12.41204825,241.63,241.56,32.28655825]
[1738214241890,12.28655825,241.63,241.56,32.28655825]
[1738214242206,0.62124595,241.63,241.57,12.28655825]
[1738214242700,12.9078042,241.63,241.56,32.28655825]
[1738214243403,12.9078042,241.63,241.56,20.0]
[1738214243575,12.28655825,241.62,241.56,20.0]
[1738214247485,12.9078042,241.63,241.56,20.0]
[1738214249613,119.06344225,241.64,241.56,32.28655825]
[1738214249803,119.06344225,241.64,241.57,12.28655825]
[1738214250599,7.89838574,241.62,241.55,7.89838574]
[1738214250804,0.62124595,241.61,241.55,7.89838574]
[1738214251114,7.89838574,241.6,241.54,0.063]
[1738214251486,7.89838574,241.58,241.54,0.063]
[1738214252118,7.89838574,241.57,241.54,0.063]
[1738214252420,7.89838574,241.58,241.54,0.063]
[1738214252623,7.89838574,241.57,241.54,0.063]
[1738214253723,7.89838574,241.58,241.54,20.063]
[1738214254316,7.89838574,241.58,241.54,0.063]
[1738214254707,8.51963169,241.59,241.54,0.063]
[1738214255209,0.62124595,241.59,241.54,0.063]
[1738214257807,7.89838574,241.58,241.54,20.063]
[1738214258628,24.39812995,241.6,241.54,0.063]
[1738214259927,24.39812995,241.6,241.54,7.96138574]
[1738214260113,24.39812995,241.6,241.54,0.063]
[1738214262133,23.776884,241.6,241.54,7.96138574]
[1738214262306,8.51963169,241.63,241.56,7.89838574]
[1738214262620,23.902374,241.62,241.56,7.89838574]
[1738214262801,23.902374,241.62,241.55,7.89838574]
[1738214263219,8.51963169,241.63,241.55,7.89838574]
[1738214263403,0.62124595,241.63,241.56,7.89838574]
[1738214264203,90.89838574,241.64,241.56,7.89838574]
[1738214264402,0.62124595,241.63,241.56,7.89838574]
[1738214264810,7.89838574,241.62,241.55,7.89838574]
[1738214265914,7.89838574,241.62,241.54,7.96138574]
[1738214266308,7.89838574,241.6,241.56,20.0]
[1738214266509,7.89838574,241.59,241.56,20.0]
[1738214266817,7.89838574,241.6,241.56,20.0]
[1738214267004,32.29651569,241.62,241.54,7.96138574]
[1738214268511,7.89838574,241.6,241.56,20.0]
[1738214269021,7.89838574,241.59,241.54,0.063]
[1738214270228,7.89838574,241.58,241.54,0.063]
[1738214271426,7.89838574,241.59,241.54,20.063]
[1738214272120,8.51963169,241.6,241.54,20.063]
[1738214272328,8.51963169,241.6,241.55,20.0]
[1738214272627,7.89838574,241.6,241.55,20.0]
[1738214273029,7.89838574,241.61,241.54,7.96138574]
[1738214273215,8.02387574,241.6,241.55,20.0]
[1738214276130,7.89838574,241.6,241.55,20.0]
[1738214276312,31.67526974,241.61,241.54,0.063]
[1738214277417,7.89838574,241.6,241.55,20.0]
[1738214278016,7.89838574,241.6,241.55,19.5466675]
[1738214278730,7.89838574,241.61,241.54,7.96138574]
[1738214279343,7.89838574,241.6,241.54,0.063]
[1738214280118,90.89838574,241.6,241.55,20.0]
[1738214282837,7.89838574,241.56,241.54,0.063]
[1738214284341,7.89838574,241.57,241.54,0.063]
[1738214284724,7.89838574,241.56,241.54,0.063]
[1738214285537,90.89838574,241.58,241.54,0.063]
[1738214287946,83.0,241.58,241.54,0.063]
[1738214289046,83.0,241.57,241.54,0.063]
[1738214291973,83.0,241.57,241.54,7.96138574]
[1738214292328,14.40044217,241.62,241.56,7.89838574]
[1738214292329,89.50205643,241.62,241.56,7.89838574]
[1738214292528,89.50205643,241.62,241.59,7.89838574]
[1738214293151,83.063,241.62,241.59,7.89838574]
[1738214293621,83.063,241.62,241.6,7.89838574]
[1738214293828,0.063,241.62,241.6,7.89838574]
[1738214294027,0.063,241.62,241.61,7.89838574]
[1738214295748,0.063,241.62,241.6,7.89838574]
[1738214295958,0.063,241.6,241.59,7.89838574]
[1738214297061,0.063,241.6,241.58,7.89838574]
[1738214297353,0.063,241.6,241.54,0.063]
[1738214297354,7.96138574,241.6,241.54,0.063]
[1738214298040,0.063,241.6,241.56,20.0]
[1738214300348,0.063,241.6,241.55,7.89838574]
[1738214300654,0.063,241.6,241.54,27.96138574]
[1738214301250,0.063,241.6,241.58,7.89838574]
[1738214302456,0.063,241.6,241.59,27.89838574]
[1738214302753,0.063,241.6,241.59,29.51848574]
[1738214305465,0.063,241.6,241.59,27.89838574]
[1738214310640,0.063,241.6,241.59,7.89838574]
[1738214311047,0.063,241.6,241.58,7.89838574]
[1738214311653,0.063,241.6,241.57,7.89838574]
[1738214312365,0.063,241.6,241.54,7.96138574]
[1738214313069,0.063,241.6,241.57,20.0]
[1738214313368,0.063,241.6,241.54,0.063]
[1738214314566,12.40978665,241.6,241.56,20.0]
[1738214315044,83.0,241.59,241.54,0.063]
[1738214315464,0.12549,241.58,241.54,0.063]
[1738214315671,12.34678665,241.56,241.54,0.063]
[1738214318766,83.0,241.55,241.54,0.063]
[1738214320564,0.063,241.6,241.57,20.0]
[1738214320762,12.94111286,241.68,241.61,20.0]
[1738214320952,12.94111286,241.68,241.61,32.34678665]
[1738214321556,0.063,241.68,241.61,32.34678665]
[1738214324675,0.063,241.68,241.61,32.47227665]
[1738214324872,6.43905643,241.79,241.61,32.47227665]
[1738214324873,6.43905643,241.79,241.67,49.8469273]
[1738214325173,6.43905643,241.79,241.77,12.34678665]
[1738214326149,6.43905643,241.79,241.78,13.34678665]
[1738214326356,11.63768094,241.81,241.8,20.0]
[1738214326568,0.03,241.82,241.81,24.776884]
[1738214326749,51.51245145,241.83,241.82,0.37647]
[1738214326959,0.063,241.85,241.84,20.0]
[1738214327181,0.063,241.85,241.84,32.34678665]
[1738214330861,0.03,241.99,241.92,1.37647]
[1738214331055,0.03,241.99,241.98,20.0]
[1738214331258,0.03,241.99,241.98,12.34678665]
[1738214333056,0.03,241.99,241.98,20.0]
[1738214335563,0.03,241.99,241.98,13.34678665]
[1738214335769,0.03,241.99,241.98,12.34678665]
[1738214337364,0.03,241.99,241.98,13.34678665]
[1738214338087,0.03,241.99,241.98,12.34678665]
[1738214338785,0.03,242.07,241.99,0.25098]
[1738214338964,0.03,242.07,242.06,12.34678665]
[1738214340359,12.37678665,242.07,241.99,12.34678665]
[1738214340563,12.37678665,242.07,242.02,20.0]
[1738214341084,0.03,242.07,242.04,20.0]
[1738214342082,0.03,242.07,242.06,20.0]
[1738214342290,0.03,242.07,242.05,12.34678665]
[1738214345783,0.03,242.07,242.02,12.34678665]
[1738214345983,0.03,242.07,241.96,23.776884]
[1738214345984,0.03,242.07,242.04,12.34678665]
[1738214346790,0.03,242.07,242.02,12.34678665]
[1738214347000,0.03,242.07,242.06,1.0]
[1738214347181,0.03,242.09,242.06,13.34678665]
[1738214347384,0.03,242.09,242.08,12.34678665]
[1738214348394,0.03,242.09,242.08,37.50014065]
[1738214349491,0.03,242.09,242.08,13.34678665]
[1738214349695,0.03,242.09,242.08,12.34678665]
[1738214351268,0.03,242.09,242.08,13.34678665]
[1738214351574,1.5782,242.2,242.11,20.0]
[1738214351896,1.5782,242.2,242.13,12.34678665]
[1738214353187,0.03,242.24,242.13,12.34678665]
[1738214357201,12.34678665,242.23,242.13,12.34678665]
[1738214357600,24.153354,242.22,242.13,12.34678665]
[1738214357800,12.34678665,242.18,242.11,12.34678665]
[1738214357985,12.34678665,242.19,242.12,12.34678665]
[1738214358297,83.0,242.23,242.13,12.34678665]
[1738214358507,12.34678665,242.21,242.13,12.34678665]
[1738214359695,12.34678665,242.22,242.13,12.34678665]
[1738214360288,12.34678665,242.21,242.13,12.34678665]
[1738214361207,12.34678665,242.15,242.08,12.34678665]
[1738214361514,12.34678665,242.15,242.11,20.0]
[1738214362186,13.94908665,242.16,242.11,20.0]
[1738214362386,13.94908665,242.16,242.12,20.0]
[1738214362589,1.6023,242.16,242.12,20.0]
[1738214363010,1.6023,242.16,242.03,0.99596618]
[1738214363011,95.34678665,242.13,241.95,6.06136623]
[1738214363191,12.34678665,242.07,242.0,12.34678665]
[1738214363711,12.34678665,242.08,242.04,20.0]
[1738214364080,12.34678665,242.09,242.04,20.0]
[1738214364283,4.75164595,242.11,242.03,12.34678665]
[1738214364284,12.9680326,242.11,242.03,12.34678665]
[1738214364492,0.12549,242.1,242.03,12.34678665]
[1738214365891,0.12549,242.1,241.99,0.03]
[1738214365892,0.12549,242.02,241.99,0.03]
[1738214366203,14.25375665,242.0,241.99,0.03]
[1738214366393,14.37924665,242.0,241.99,0.03]
[1738214368510,2.03246,242.0,241.99,0.03]
[1738214368707,45.50267513,242.0,241.99,0.03]
[1738214371916,45.50267513,242.0,241.75,1.03]
[1738214371917,0.12549,241.97,241.75,1.03]
[1738214372215,19.69333113,241.9,241.83,19.69333113]
[1738214372418,102.69333113,241.89,241.82,19.69333113]
[1738214372616,83.0,241.89,241.82,19.69333113]
[1738214372794,83.0,241.89,241.86,20.0]
[1738214373711,83.0,241.89,241.87,20.0]
[1738214373917,11.4975,241.98,241.78,3.12]
[1738214373918,83.0,241.97,241.88,19.69333113]
[1738214374115,83.0,241.97,241.96,19.69333113]
[1738214378317,83.0,241.97,241.95,19.69333113]
[1738214379014,6.4447,242.04,241.87,23.776884]
[1738214379015,102.69333113,241.96,241.87,19.69333113]
[1738214379209,102.69333113,241.95,241.87,19.69333113]
[1738214379521,19.69333113,241.93,241.89,20.0]
[1738214379926,19.69333113,241.93,241.85,19.69333113]
[1738214380239,19.69333113,241.91,241.83,19.69333113]
[1738214380398,23.902374,241.97,241.82,19.69333113]
[1738214380399,19.69333113,241.9,241.82,19.69333113]
[1738214380600,19.69333113,241.89,241.81,19.69333113]
[1738214381504,19.69333113,241.91,241.86,20.0]
[1738214381795,19.69333113,241.91,241.83,19.69333113]
[1738214381999,19.69333113,241.91,241.86,20.0]
[1738214384323,20.31457708,241.91,241.86,20.0]
[1738214384618,19.69333113,241.9,241.86,20.0]
[1738214385014,19.69333113,241.92,241.84,19.69333113]
[1738214385217,19.69333113,241.9,241.86,20.0]
[1738214385425,102.69333113,241.89,241.82,19.69333113]
[1738214386102,103.44006708,241.88,241.83,20.0]
[1738214386304,102.81882113,241.88,241.83,20.0]
[1738214386703,0.62124595,241.87,241.83,20.0]
[1738214386918,102.81882113,241.88,241.83,20.0]
[1738214387429,0.12549,241.86,241.79,19.69333113]
[1738214387729,103.31457708,241.85,241.81,20.0]
[1738214387907,102.69333113,241.85,241.81,20.0]
[1738214388110,83.0,241.85,241.82,20.0]
[1738214390036,102.69333113,241.85,241.78,19.69333113]
[1738214390203,19.81882113,241.83,241.77,0.03]
[1738214390408,19.69333113,241.8,241.77,0.03]
[1738214390631,83.0,241.79,241.77,0.03]
[1738214392937,83.0,241.79,241.78,20.0]
[1738214393429,0.12549,241.8,241.77,0.03]
[1738214393628,12.32621879,241.8,241.77,0.03]
[1738214393819,12.94746474,241.8,241.77,0.03]
[1738214394133,12.32621879,241.8,241.77,0.03]
[1738214394437,12.45170879,241.78,241.77,0.03]
[1738214394610,36.47957279,241.78,241.77,0.03]
[1738214396038,24.153354,241.78,241.77,0.03]
[1738214396335,24.77459995,241.78,241.77,0.03]
[1738214397635,24.90008995,241.78,241.77,0.03]
[1738214397835,1.5603,241.81,241.77,12.35621879]
[1738214398017,1.5603,241.81,241.78,12.32621879]
[1738214398724,1.5603,241.81,241.77,12.35621879]
[1738214399130,1.5603,241.81,241.78,12.32621879]
[1738214399807,1.5603,241.81,241.77,12.35621879]
[1738214400439,1.5603,241.81,241.77,0.03]
[1738214403341,0.12549,241.8,241.77,0.03]
[1738214403546,36.47957279,241.78,241.77,0.03]
[1738214404441,24.153354,241.76,241.75,0.03]
[1738214404620,37.10081874,241.76,241.75,0.03]
[1738214407451,2.12549,241.75,241.74,0.03]
[1738214407634,2.12549,241.75,241.71,0.03]
[1738214407635,46.278844,241.72,241.71,0.03]
[1738214407947,39.22630874,241.72,241.71,0.03]
[1738214408729,43.36330874,241.72,241.71,0.03]
[1738214410950,13.44942474,241.72,241.71,0.03]
[1738214411129,1.12320595,241.72,241.71,0.03]
[1738214413956,25.316984,241.75,241.71,0.03]
[1738214413957,2.16134595,241.75,241.71,0.03]
[1738214414140,1.5401,241.75,241.71,0.03]
[1738214414450,83.0,241.75,241.71,0.03]
[1738214415447,0.37647,241.74,241.71,0.03]
[1738214416042,95.32621879,241.75,241.71,0.03]
[1738214416248,83.0,241.75,241.71,0.03]
[1738214417161,83.0,241.75,241.71,12.35621879]
[1738214417363,83.0,241.75,241.73,12.32621879]
[1738214417856,83.0,241.81,241.76,20.0]
[1738214418071,83.0,241.81,241.78,12.32621879]
[1738214418559,83.0,241.81,241.76,12.32621879]
[1738214419265,83.0,241.81,241.75,12.32621879]
[1738214420168,95.94746474,241.81,241.76,20.0]
[1738214420369,12.32621879,241.79,241.76,20.0]
[1738214420867,12.32621879,241.79,241.71,12.35621879]
[1738214421162,83.0,241.78,241.71,12.35621879]
[1738214421361,83.0,241.78,241.75,20.0]
[1738214421846,83.0,241.78,241.72,12.32621879]
[1738214422847,83.0,241.78,241.73,12.32621879]
[1738214423851,83.0,241.78,241.74,12.32621879]
[1738214424366,83.0,241.78,241.75,12.32621879]
[1738214424941,83.0,241.78,241.74,12.32621879]
[1738214425263,83.0,241.78,241.72,12.32621879]
[1738214425853,83.0,241.77,241.72,12.32621879]
[1738214429541,83.0,241.77,241.73,20.0]
[1738214431668,83.0,241.76,241.73,20.0]
[1738214432074,83.12549,241.75,241.71,0.03]
[1738214432365,95.70268879,241.75,241.71,0.03]
[1738214437171,95.76568879,241.75,241.71,0.03]
[1738214437844,83.0,241.74,241.71,0.03]
[1738214438048,83.0,241.73,241.71,0.03]
[1738214438670,120.10081874,241.72,241.71,0.03]
[1738214438860,119.47957279,241.72,241.71,0.03]
[1738214439961,36.47957279,241.72,241.71,0.03]
[1738214440161,37.10081874,241.72,241.71,0.03]
[1738214441665,37.22630874,241.72,241.71,0.03]
[1738214448581,32.79518978,241.72,241.71,0.03]
[1738214449381,36.93218978,241.72,241.71,0.03]
[1738214449759,37.93218978,241.72,241.71,0.03]
[1738214452257,39.59208873,241.72,241.71,0.03]
[1738214452781,0.37647,241.68,241.57,0.03]
[1738214453084,0.12549,241.61,241.57,0.03]
[1738214453280,0.74673595,241.61,241.57,0.03]
[1738214453691,83.0,241.6,241.57,0.03]
[1738214455990,83.0,241.59,241.57,0.03]
[1738214456370,83.50196,241.58,241.57,0.03]
[1738214456578,92.01830578,241.58,241.57,0.03]
[1738214456768,91.39705983,241.58,241.57,0.03]
[1738214457989,115.17394383,241.58,241.57,0.03]
[1738214460594,22.37647,241.55,241.54,0.063]
[1738214460793,24.153354,241.52,241.5,0.003]
[1738214460997,1.0,241.48,241.36,0.063]
[1738214461182,7.89509983,241.4,241.36,0.063]
[1738214462284,0.12549,241.39,241.36,0.063]
[1738214462689,7.89509983,241.41,241.36,0.063]
[1738214463266,7.89509983,241.46,241.39,7.89509983]
[1738214463472,0.37647,241.46,241.39,7.89509983]
[1738214463999,0.37647,241.46,241.36,0.063]
[1738214464000,7.89509983,241.51,241.44,7.89509983]
[1738214464188,7.89509983,241.52,241.45,7.89509983]
[1738214464395,7.89509983,241.53,241.46,7.89509983]
[1738214464571,12.35227375,241.54,241.47,12.35227375]
[1738214464892,0.62124595,241.57,241.45,12.35227375]
[1738214464893,83.0,241.52,241.45,12.35227375]
[1738214465198,0.12549,241.51,241.45,12.35227375]
[1738214465399,83.0,241.52,241.47,12.35227375]
[1738214465576,83.0,241.51,241.47,12.35227375]
[1738214466706,83.0,241.51,241.48,12.35227375]
[1738214466881,83.0,241.51,241.49,12.35227375]
[1738214467207,83.0,241.58,241.5,12.35227375]
[1738214467379,95.35227375,241.64,241.57,12.35227375]
[1738214467579,0.25098,241.56,241.45,0.62096741]
[1738214467771,0.25098,241.56,241.38,6.3976]
[1738214467772,84.62124595,241.55,241.4,12.35227375]
[1738214468089,20.0,241.51,241.38,6.3976]
[1738214468274,12.35227375,241.48,241.41,12.35227375]
[1738214469281,12.35227375,241.48,241.4,12.35227375]
[1738214469795,12.35227375,241.48,241.41,12.35227375]
[1738214470294,12.35227375,241.48,241.4,12.35227375]
[1738214470494,0.12549,241.47,241.4,12.35227375]
[1738214470810,12.35227375,241.46,241.38,18.74987375]
[1738214471187,12.35227375,241.42,241.37,0.4561192]
[1738214471691,0.12549,241.41,241.37,20.4561192]
[1738214471895,12.47776375,241.38,241.37,0.4561192]
[1738214472119,0.12549,241.37,241.36,0.063]